bitfinex/quotes_ETHUSD_20250824
["timestamp","ask_amount","ask_price","bid_price","bid_amount"]
[1756040582247,0.02,4765.8,4765.7,8.13283056]
[1756040582451,0.02,4765.8,4765.7,9.06997414]
[1756040582847,0.02,4765.8,4765.7,9.51257414]
[1756040583030,0.02,4765.8,4765.7,9.61737414]
[1756040584355,0.02,4765.8,4765.7,9.61704643]
[1756040585138,0.02,4765.8,4765.7,9.42057121]
[1756040585337,0.02,4765.8,4765.7,9.61700391]
[1756040586546,0.3104,4765.8,4765.7,8.88630391]
[1756040586855,0.02,4765.8,4765.7,8.88630391]
[1756040588432,1e-08,4765.8,4765.7,10.27600391]
[1756040589162,1e-08,4765.9,4765.8,2.7582836]
[1756040589361,1e-08,4765.9,4765.8,5.19768446]
[1756040590633,1e-08,4766.4,4766.3,2.75806348]
[1756040590838,1e-08,4766.4,4766.3,6.73459618]
[1756040591037,1e-08,4766.4,4766.3,7.28199618]
[1756040591259,1e-08,4766.4,4766.3,8.52547795]
[1756040592459,1e-08,4766.8,4766.7,2.75788742]
[1756040592660,1e-08,4766.8,4766.7,8.34842012]
[1756040592866,1e-08,4766.8,4766.7,8.89582012]
[1756040593959,1e-08,4766.8,4766.7,9.45922012]
[1756040594128,1e-08,4766.8,4766.7,11.23992036]
[1756040594336,1e-08,4766.8,4766.7,11.23991241]
[1756040594761,1e-08,4766.8,4766.7,11.23982564]
[1756040595297,0.32822399,4768.5,4766.7,11.23982564]
[1756040595298,0.32822399,4768.5,4767.9,2.09735942]
[1756040595433,0.32822399,4768.5,4768.1,2.09725231]
[1756040595776,0.2904,4768.2,4768.1,2.88638754]
[1756040595930,0.2904,4768.2,4768.1,3.08183037]
[1756040596126,0.2904,4768.2,4768.1,2.29269514]
[1756040596328,0.32822399,4768.5,4768.3,2.09718348]
[1756040596527,0.02,4768.8,4768.3,5.78562631]
[1756040597845,0.02,4768.8,4768.3,6.07272631]
[1756040598039,0.02,4768.8,4768.3,6.51532631]
[1756040598246,0.02,4768.8,4768.3,7.34842251]
[1756040598430,0.02,4768.8,4768.3,7.79102251]
[1756040599070,1e-08,4768.8,4768.7,2.75700757]
[1756040599297,1e-08,4768.8,4768.7,9.8363504]
[1756040599439,1e-08,4768.8,4768.7,11.425241]
[1756040599643,1e-08,4768.8,4768.7,11.951874]
[1756040600153,1e-08,4768.8,4768.7,8.017274]
[1756040600340,1e-08,4768.8,4768.7,11.955874]
[1756040600770,1e-08,4768.8,4768.7,11.95497229]
[1756040601861,1e-08,4768.8,4768.7,11.51237229]
[1756040602061,1e-08,4768.8,4768.7,11.22527229]
[1756040602577,1e-08,4768.8,4768.7,7.72927229]
[1756040602891,1e-08,4768.8,4768.7,11.52367229]
[1756040603247,1e-08,4768.8,4768.7,11.97727229]
[1756040603584,0.31120001,4768.8,4768.7,7.06927229]
[1756040603745,1e-08,4768.8,4768.7,10.56527229]
[1756040603941,0.31120001,4768.8,4768.7,2.48038169]
[1756040604271,0.65980001,4768.8,4768.7,5.87144335]
[1756040604476,1e-08,4768.8,4768.7,5.87144335]
[1756040604654,1e-08,4768.8,4768.7,7.28344335]
[1756040604977,1e-08,4768.8,4768.7,8.22145025]
[1756040606842,1e-08,4768.8,4768.7,11.22145025]
[1756040607077,0.00200001,4768.8,4768.7,11.22145025]
[1756040607379,1e-08,4768.8,4768.7,7.72545025]
[1756040607679,1e-08,4768.8,4768.7,11.22245025]
[1756040607976,1e-08,4768.8,4768.7,7.72545025]
[1756040608161,1e-08,4768.8,4768.7,11.22345025]
[1756040608743,1e-08,4768.8,4768.7,10.47145025]
[1756040608944,0.31120001,4768.8,4768.7,10.47145025]
[1756040609249,0.31120001,4768.8,4768.7,7.47145025]
[1756040610487,0.75870001,4768.8,4768.7,5.87339833]
[1756040611144,0.75870001,4768.8,4768.7,5.78936533]
[1756040611345,0.75870001,4768.8,4768.7,0.19435776]
[1756040611582,0.75870001,4768.8,4768.7,3.499]
[1756040611782,0.75870001,4768.8,4768.7,3.69335776]
[1756040612390,0.75870001,4768.8,4768.7,5.79059693]
[1756040612741,1e-08,4768.8,4768.7,5.79059693]
[1756040612945,1e-08,4768.8,4768.7,6.57936543]
[1756040613258,0.31120001,4768.8,4768.7,6.57936543]
[1756040613457,1e-08,4768.8,4768.7,5.79059693]
[1756040614087,1e-08,4768.8,4768.7,5.89550177]
[1756040614594,0.31120001,4768.8,4768.7,5.89550177]
[1756040614760,0.75870001,4768.8,4768.7,5.89550177]
[1756040614959,0.75870001,4768.8,4768.7,5.79170177]
[1756040615167,0.75870001,4768.8,4768.7,3.6946942]
[1756040616339,0.75870001,4768.8,4768.7,2.29200787]
[1756040616539,0.31120001,4768.8,4768.7,5.79200787]
[1756040617484,1e-08,4768.8,4768.7,7.03150787]
[1756040617776,0.75870001,4768.8,4768.7,2.39680787]
[1756040617942,0.75870001,4768.8,4768.7,5.79200787]
[1756040618144,0.75870001,4768.8,4768.7,0.1950003]
[1756040618344,0.86350001,4768.8,4768.7,3.6960003]
[1756040618544,1.16063489,4768.8,4768.7,3.502]
[1756040618774,0.86350001,4768.8,4768.7,3.502]
[1756040619559,0.86350001,4768.8,4768.2,1.614]
[1756040619764,0.4475,4768.7,4768.3,3.502]
[1756040619964,0.3112,4768.4,4768.3,3.502]
[1756040620159,0.7587,4768.4,4768.3,3.502]
[1756040620511,0.8635,4768.4,4768.3,3.502]
[1756040620684,1.15955163,4768.4,4768.2,1.614]
[1756040620886,0.71205163,4768.4,4768.3,3.502]
[1756040621404,1.15955163,4768.4,4768.3,3.502]
[1756040621772,3.25669113,4768.4,4768.3,3.502]
[1756040621974,3.25669113,4768.4,4768.2,1.614]
[1756040622192,0.53537021,4768.3,4768.2,1.614]
[1756040622359,1.29407021,4768.3,4768.2,5.116]
[1756040622565,3.39125369,4768.3,4768.2,5.116]
[1756040622802,3.39125369,4768.3,4768.2,0.001]
[1756040624172,6.39125369,4768.3,4768.2,0.001]
[1756040624499,6.71949027,4768.3,4768.2,0.001]
[1756040628480,13.75749026,4768.3,4768.2,0.001]
[1756040633784,17.38028555,4768.3,4768.2,0.001]
[1756040634453,18.04028555,4768.3,4768.2,0.001]
[1756040635019,18.04128555,4768.3,4768.2,0.001]
[1756040635901,10.9893702,4768.3,4768.2,0.001]
[1756040636619,13.08655368,4768.3,4768.2,0.001]
[1756040636818,10.9893702,4768.3,4768.2,0.001]
[1756040637324,11.31761647,4768.3,4768.2,0.001]
[1756040637524,13.41479995,4768.3,4768.2,0.001]
[1756040638647,13.85439995,4768.3,4768.2,0.001]
[1756040640444,14.96592249,4768.3,4768.2,0.001]
[1756040641246,14.96592249,4768.3,4768.2,0.0602]
[1756040642839,18.48392249,4768.3,4768.2,0.0602]
[1756040643169,18.15567622,4768.3,4768.2,0.0602]
[1756040644134,18.15467622,4768.3,4768.2,0.0602]
[1756040644438,14.64669274,4768.3,4768.2,0.0602]
[1756040644635,14.64669274,4768.3,4768.2,0.3681]
[1756040644636,10.14279999,4768.3,4768.2,0.3681]
[1756040644854,12.56825663,4768.3,4768.2,0.3681]
[1756040645169,12.56825663,4768.3,4768.2,0.0602]
[1756040645370,10.47107315,4768.3,4768.2,0.3681]
[1756040645862,12.56825663,4768.3,4768.2,0.3681]
[1756040646239,12.56825663,4768.3,4768.2,0.0602]
[1756040646440,12.87625663,4768.3,4768.2,0.0602]
[1756040646638,17.94590129,4768.3,4768.2,0.0602]
[1756040647843,18.50962397,4768.3,4768.2,0.0602]
[1756040648042,18.70599519,4768.3,4768.2,0.0602]
[1756040648250,19.40427251,4768.3,4768.2,0.0602]
[1756040648676,15.78147251,4768.3,4768.2,0.0602]
[1756040648878,19.40527251,4768.3,4768.2,0.0602]
[1756040649451,19.52318072,4768.3,4768.2,0.0602]
[1756040650060,19.40527251,4768.3,4768.2,0.0602]
[1756040651466,7.92311781,4768.3,4768.2,0.3681]
[1756040651657,7.92311781,4768.3,4768.2,0.8396]
[1756040651854,10.92311781,4768.3,4768.2,0.8396]
[1756040652088,10.59484465,4768.3,4768.2,0.8396]
[1756040652258,0.55684466,4768.3,4768.2,0.8396]
[1756040652459,0.1048,4768.3,4768.2,0.8396]
[1756040653074,0.1048,4768.3,4768.2,2.93682746]
[1756040654289,0.1048,4768.3,4768.2,3.44234451]
[1756040656718,1e-08,4768.8,4768.7,2.09700757]
[1756040656893,1e-08,4768.8,4768.7,2.40490757]
[1756040657101,0.10480001,4768.8,4768.7,2.87640757]
[1756040658830,1e-08,4768.8,4768.7,2.87640757]
[1756040659016,1e-08,4768.8,4768.7,3.89853601]
[1756040660431,1e-08,4768.8,4768.7,0.7794]
[1756040660592,1e-08,4768.8,4768.7,2.40490757]
[1756040660926,1e-08,4768.8,4768.7,2.87640757]
[1756040675569,1e-08,4768.8,4768.7,2.40490757]
[1756040675872,1e-08,4768.8,4768.7,6.39180757]
[1756040676077,1e-08,4768.8,4768.7,7.41267713]
[1756040678072,1e-08,4768.8,4768.7,6.94777713]
[1756040678278,1e-08,4768.8,4768.7,5.61900757]
[1756040678774,1e-08,4768.8,4768.7,5.91610757]
[1756040679607,1e-08,4768.8,4768.7,5.61900757]
[1756040680272,1e-08,4768.8,4768.7,5.91610757]
[1756040680474,1e-08,4768.8,4768.7,5.61900757]
[1756040680670,0.31660001,4768.8,4768.7,5.61900757]
[1756040680906,0.42140001,4768.8,4768.7,5.61900757]
[1756040681678,0.10480001,4768.8,4768.7,5.61900757]
[1756040683075,0.42140001,4768.8,4768.6,0.001]
[1756040683416,0.42140001,4768.8,4768.7,3.519]
[1756040683983,0.74950001,4768.8,4768.7,3.519]
[1756040684519,0.42140001,4768.8,4768.7,5.61600757]
[1756040684807,0.10480001,4768.8,4768.7,6.37800757]
[1756040685010,0.10480001,4768.8,4768.7,7.38701635]
[1756040685174,1e-08,4768.8,4768.7,7.38701635]
[1756040686781,1e-08,4768.8,4768.7,8.04701635]
[1756040686981,1e-08,4768.8,4768.7,8.15181635]
[1756040687612,1e-08,4769.4,4769.2,2.75678772]
[1756040687822,1e-08,4769.4,4769.3,5.87557877]
[1756040687992,1e-08,4769.4,4769.3,8.43722252]
[1756040688407,0.01470001,4769.4,4768.6,0.001]
[1756040688588,1e-08,4769.4,4769.3,0.2971]
[1756040688782,1e-08,4769.4,4769.3,5.93984375]
[1756040689316,1e-08,4769.4,4769.3,5.94084375]
[1756040690179,1e-08,4769.4,4769.3,5.64374375]
[1756040690679,0.01910001,4769.4,4769.3,5.64374375]
[1756040691312,1e-08,4769.4,4769.3,6.87619952]
[1756040691615,1e-08,4769.4,4769.3,7.34009952]
[1756040691809,1e-08,4769.4,4769.3,6.87519952]
[1756040692062,1e-08,4769.4,4769.3,6.57809952]
[1756040692252,0.00200001,4769.4,4769.3,6.57809952]
[1756040692639,0.00200001,4769.4,4769.3,7.33649952]
[1756040695434,0.00200001,4769.4,4769.3,7.99649952]
[1756040697554,1e-08,4769.4,4769.3,7.99649952]
[1756040698552,1e-08,4769.4,4769.3,8.10129952]
[1756040699961,1e-08,4769.4,4769.3,4.55529952]
[1756040700332,1e-08,4769.4,4769.3,8.10129952]
[1756040701841,1e-08,4769.4,4769.3,7.64999952]
[1756040702058,1e-08,4769.4,4769.3,3.44399952]
[1756040702246,1e-08,4769.4,4769.3,6.68289952]
[1756040703294,0.29810001,4769.4,4769.3,3.13689952]
[1756040703576,0.85880001,4769.4,4769.3,5.64174375]
[1756040704166,0.40290001,4769.4,4769.3,5.64174375]
[1756040704370,0.10480001,4769.4,4769.3,5.64174375]
[1756040704664,0.10480001,4769.4,4769.3,8.10009952]
[1756040704665,1e-08,4769.4,4769.3,8.10009952]
[1756040704873,1e-08,4769.9,4769.4,2.75669979]
[1756040705076,1e-08,4769.9,4769.8,2.40362396]
[1756040705388,1e-08,4769.9,4769.8,6.05542396]
[1756040705736,1e-08,4769.9,4769.8,6.50672396]
[1756040705961,0.01200001,4770.8,4770.7,2.09612845]
[1756040706169,0.04,4771.4,4770.7,2.09612845]
[1756040706170,0.04,4771.4,4771.1,2.09595271]
[1756040706471,0.2981,4771.2,4771.1,2.09595271]
[1756040706659,0.754,4771.2,4771.1,2.09595271]
[1756040706859,0.754,4771.2,4771.1,5.64395271]
[1756040707868,0.2981,4771.2,4771.1,5.64395271]
[1756040709076,0.754,4771.2,4771.1,5.64295271]
[1756040709474,0.754,4771.2,4771.1,2.09595271]
[1756040709681,0.754,4771.2,4771.1,5.64195271]
[1756040710477,0.2981,4771.2,4771.1,5.64195271]
[1756040711850,0.1448,4771.4,4771.3,2.09586485]
[1756040712050,0.4429,4771.4,4771.3,5.64086485]
[1756040712455,0.8988,4771.4,4771.3,5.64086485]
[1756040713078,0.8988,4771.4,4771.3,2.09586485]
[1756040713296,0.8988,4771.4,4771.3,5.64086485]
[1756040714984,0.8988,4771.4,4771.3,3.545]
[1756040715141,0.8988,4771.4,4771.1,2.09595129]
[1756040715341,0.4559,4771.3,4771.2,3.542]
[1756040715545,0.754,4771.3,4771.2,3.542]
[1756040715973,1.082022,4771.3,4771.2,3.542]
[1756040716380,1.186822,4771.3,4771.2,3.542]
[1756040717185,0.328022,4771.3,4771.2,3.542]
[1756040717385,0.1048,4771.3,4771.2,5.94500878]
[1756040717681,0.1048,4771.3,4771.2,5.63790878]
[1756040717841,0.4029,4771.3,4771.2,5.63790878]
[1756040718276,0.1048,4771.3,4771.2,5.63790878]
[1756040719183,0.1048,4771.3,4771.2,5.94500878]
[1756040719762,0.04,4771.4,4771.3,2.09586485]
[1756040720099,0.04,4771.4,4771.3,2.85426485]
[1756040720261,0.04,4771.4,4771.3,2.40296485]
[1756040720455,0.04,4771.4,4771.3,3.65835221]
[1756040724696,0.04,4771.4,4771.3,2.89995221]
[1756040724866,0.04,4771.4,4771.3,7.18895221]
[1756040725686,1e-08,4771.4,4771.3,7.84895221]
[1756040725994,1e-08,4771.8,4771.7,2.75568916]
[1756040726300,1e-08,4771.8,4771.7,11.73694012]
[1756040726503,1e-08,4771.8,4771.7,12.18914012]
[1756040726665,1e-08,4771.8,4771.7,12.97714012]
[1756040728569,1e-08,4771.8,4771.7,12.98014012]
[1756040729074,1e-08,4771.8,4771.7,9.98014012]
[1756040729670,1e-08,4771.8,4771.7,5.98594012]
[1756040729871,1e-08,4771.8,4771.7,9.98014012]
[1756040731078,1e-08,4771.8,4771.7,9.97914012]
[1756040731989,1e-08,4771.8,4771.7,12.97914012]
[1756040735392,1e-08,4771.8,4771.7,9.43814012]
[1756040735606,1e-08,4771.8,4771.7,12.97814012]
[1756040736399,1e-08,4771.8,4771.7,8.02814012]
[1756040736597,0.29930001,4771.8,4771.7,11.56914012]
[1756040736820,0.29930001,4771.8,4771.7,11.56814012]
[1756040736993,1e-08,4771.8,4771.7,12.31814012]
[1756040738638,1e-08,4771.8,4771.7,11.56814012]
[1756040738938,1e-08,4771.8,4771.7,12.52594012]
[1756040739093,1e-08,4771.8,4771.7,12.97814012]
[1756040741365,0.29930001,4771.8,4771.7,11.56814012]
[1756040742092,1e-08,4771.8,4771.7,11.56814012]
[1756040742221,1e-08,4771.8,4771.7,11.86594012]
[1756040742428,1e-08,4771.8,4771.7,12.31814012]
[1756040743461,1e-08,4771.8,4771.7,11.56714012]
[1756040743834,0.29930001,4771.8,4771.7,8.56714012]
[1756040744562,1e-08,4771.8,4771.7,8.56714012]
[1756040744931,1e-08,4771.8,4771.7,8.86494012]
[1756040745232,0.29930001,4771.8,4771.7,8.56714012]
[1756040746063,1e-08,4771.8,4771.7,8.56714012]
[1756040746228,1e-08,4771.8,4771.7,8.56614012]
[1756040748473,1e-08,4771.8,4771.7,8.86394012]
[1756040749537,1e-08,4771.8,4771.7,8.86194012]
[1756040751766,1e-08,4771.8,4771.7,8.56414012]
[1756040752483,0.28630001,4771.8,4771.7,1.7168]
[1756040752661,0.74890001,4771.8,4771.7,7.24168916]
[1756040752865,0.85370001,4771.8,4771.7,7.24168916]
[1756040755089,0.85370001,4771.8,4771.7,1.612]
[1756040755289,0.85370001,4771.8,4771.7,5.145]
[1756040755480,0.85370001,4771.8,4771.7,1.612]
[1756040755789,0.85370001,4771.8,4771.7,5.145]
[1756040755989,1.31229941,4771.8,4771.7,5.145]
[1756040756978,1.31229941,4771.8,4771.7,5.144]
[1756040757382,1.31229941,4771.8,4771.7,1.612]
[1756040757693,1.31229941,4771.8,4771.7,5.144]
[1756040758391,0.71906563,4771.8,4771.7,7.23968916]
[1756040758593,0.39110001,4771.8,4771.7,7.23968916]
[1756040759467,0.85370001,4771.8,4771.7,5.144]
[1756040759683,0.85370001,4771.8,4771.7,7.23968916]
[1756040759886,0.85370001,4771.8,4771.7,5.144]
[1756040760564,0.85370001,4771.8,4771.7,7.23968916]
[1756040760768,0.39110001,4771.8,4771.7,7.23968916]
[1756040762063,0.85370001,4771.8,4771.7,7.23968916]
[1756040762265,0.85370001,4771.8,4771.7,7.23868916]
[1756040762695,0.85370001,4771.8,4771.7,5.143]
[1756040763219,0.85370001,4771.8,4771.7,1.612]
[1756040764104,0.85370001,4771.8,4771.7,5.142]
[1756040764307,0.97186649,4771.8,4771.7,3.53]
[1756040764881,3.06751173,4771.8,4771.7,3.53]
[1756040765095,3.06751173,4771.8,4771.2,0.001]
[1756040765096,2.09586485,4771.3,4771.2,0.001]
[1756040765302,0.3911,4771.3,4771.2,0.001]
[1756040765475,3.98605242,4771.3,4771.2,0.001]
[1756040765809,4.77667447,4771.3,4771.2,0.001]
[1756040765984,3.87253932,4771.3,4771.2,0.001]
[1756040767174,6.87253932,4771.3,4771.2,0.001]
[1756040767809,7.32407444,4771.3,4771.2,0.001]
[1756040768508,7.32384077,4771.3,4771.2,0.001]
[1756040769903,4.31407447,4771.3,4771.2,0.001]
[1756040770105,0.71912205,4771.3,4771.2,0.001]
[1756040770520,0.3911,4771.3,4771.2,0.001]
[1756040771200,0.8537,4771.3,4771.2,0.001]
[1756040771523,2.94956485,4771.3,4771.2,0.001]
[1756040771926,0.8537,4771.3,4771.2,0.001]
[1756040772326,1.19373284,4771.3,4771.2,0.001]
[1756040772494,0.73113284,4771.3,4771.2,0.001]
[1756040773827,1.52176622,4771.3,4771.2,0.001]
[1756040774400,3.61763107,4771.3,4771.2,0.001]
[1756040775508,1.52176622,4771.3,4771.2,0.001]
[1756040777034,1.18173338,4771.3,4771.2,0.001]
[1756040778119,6.27759823,4771.3,4771.2,0.001]
[1756040779933,5.94956485,4771.3,4771.2,0.001]
[1756040780321,6.40094399,4771.3,4771.2,0.001]
[1756040780929,6.48498499,4771.3,4771.2,0.001]
[1756040782909,6.81304081,4771.3,4771.2,0.001]
[1756040783443,10.33904081,4771.3,4771.2,0.001]
[1756040784242,7.69699138,4771.3,4771.2,0.001]
[1756040784543,9.79285623,4771.3,4771.2,0.001]
[1756040784912,7.69699138,4771.3,4771.2,0.001]
[1756040785136,9.79285623,4771.3,4771.2,0.001]
[1756040785344,3.88469138,4771.3,4771.2,0.2896]
[1756040785653,3.43285582,4771.3,4771.2,0.2896]
[1756040785812,3.43285582,4771.3,4771.2,0.001]
[1756040786342,10.47085581,4771.3,4771.2,0.001]
[1756040787140,7.47085581,4771.3,4771.2,0.2896]
[1756040787311,7.47085581,4771.3,4771.2,0.7266]
[1756040788420,0.43285582,4771.3,4771.2,0.7266]
[1756040789132,0.43285582,4771.3,4771.2,2.82250878]
[1756040789305,0.32805582,4771.3,4771.2,2.82250878]
[1756040789507,0.1048,4771.5,4771.4,2.09582093]
[1756040789720,0.1048,4771.5,4771.4,2.82142093]
[1756040793655,0.1048,4771.5,4771.4,4.43342093]
[1756040793858,1e-08,4771.8,4771.7,2.09568916]
[1756040794063,1e-08,4771.8,4771.7,3.38969387]
[1756040794225,1e-08,4771.8,4771.7,3.82669387]
[1756040794627,1e-08,4771.8,4771.7,6.91369387]
[1756040794926,1e-08,4771.8,4771.7,7.35069387]
[1756040795462,1e-08,4771.8,4771.7,2.38428916]
[1756040795828,1e-08,4771.8,4771.7,2.82128916]
[1756040796660,1e-08,4771.8,4771.7,2.38428916]
[1756040796876,1e-08,4771.8,4771.7,2.82128916]
[1756040797234,1e-08,4771.8,4771.7,2.38428916]
[1756040798067,1e-08,4771.8,4771.7,2.82128916]
[1756040798574,1e-08,4771.8,4771.7,3.7540862]
[1756040803488,1e-08,4771.8,4771.7,2.09568916]
[1756040803673,0.39440001,4771.8,4771.7,3.521]
[1756040804257,0.83740001,4771.8,4771.7,3.521]
[1756040805097,0.39440001,4771.8,4771.7,5.61668916]
[1756040805419,1e-08,4771.8,4771.7,8.03953951]
[1756040806671,1e-08,4771.8,4771.7,11.03953951]
[1756040810502,1e-08,4771.8,4771.7,7.51853951]
[1756040810689,1e-08,4771.8,4771.7,11.04453951]
[1756040810877,1e-08,4771.8,4771.7,11.12851651]
[1756040811082,1e-08,4771.8,4771.7,11.04453951]
[1756040812384,1e-08,4771.8,4771.7,11.04653951]
[1756040812618,1e-08,4771.8,4771.7,6.42153951]
[1756040812818,0.31550001,4771.8,4771.7,2.09568916]
[1756040812972,0.31550001,4771.8,4771.7,5.62368916]
[1756040815902,0.31909501,4771.8,4771.7,5.62368916]
[1756040816207,0.00359501,4771.8,4771.7,5.62368916]
[1756040816397,0.31909501,4771.8,4771.7,5.62368916]
[1756040817197,1e-08,4771.9,4771.8,5.75564524]
[1756040817410,1e-08,4771.9,4771.8,6.49644524]
[1756040820901,1e-08,4771.9,4771.8,8.92204524]
[1756040821103,1e-08,4771.9,4771.8,12.34324524]
[1756040821283,1e-08,4771.9,4771.8,14.33519891]
[1756040821482,1e-08,4771.9,4771.8,12.13319891]
[1756040822919,1e-08,4771.9,4771.8,8.59319891]
[1756040823119,1e-08,4771.9,4771.8,12.13319891]
[1756040823320,1e-08,4771.9,4771.8,12.15319891]
[1756040825300,0.002,4772.3,4771.8,12.15319891]
[1756040825503,0.042,4772.4,4772.3,2.75542568]
[1756040825703,0.042,4772.4,4772.3,8.20282568]
[1756040825886,0.042,4772.4,4772.3,8.75202568]
[1756040826092,0.042,4772.4,4772.3,4.76762568]
[1756040826299,1e-08,4772.4,4772.3,11.75102568]
[1756040826502,1e-08,4772.4,4772.3,13.29912397]
[1756040826823,0.33986146,4773.8,4773.7,2.09481115]
[1756040827005,0.65536146,4773.8,4773.7,5.63481115]
[1756040827531,1.09756146,4773.8,4773.7,5.63481115]
[1756040827696,1.09756146,4773.8,4773.5,1.611]
[1756040827897,0.65536146,4773.8,4773.6,3.539]
[1756040828193,0.65536146,4773.8,4773.7,2.09481115]
[1756040828791,0.65536146,4773.8,4773.6,5.63385377]
[1756040828988,0.65536146,4773.8,4773.6,3.539]
[1756040829209,0.3463,4773.7,4773.5,3.70589722]
[1756040829402,0.3463,4773.7,4773.6,3.54]
[1756040829608,0.3155,4773.6,4773.5,1.611]
[1756040829813,0.6618,4773.6,4773.5,1.611]
[1756040830017,0.6618,4773.6,4773.5,5.151]
[1756040830217,0.6618,4773.6,4773.5,1.611]
[1756040830423,0.6618,4773.6,4773.5,5.151]
[1756040831223,0.6618,4773.6,4773.5,3.54]
[1756040831388,2.75665503,4773.6,4773.5,3.54]
[1756040831591,1.14814309,4773.6,4773.5,3.54]
[1756040831791,0.6618,4773.6,4773.5,3.54]
[1756040832421,0.6618,4773.6,4773.5,5.63489892]
[1756040832624,0.3155,4773.6,4773.5,5.63489892]
[1756040833323,0.7577,4773.6,4773.5,5.63489892]
[1756040834005,0.7577,4773.6,4773.5,3.54]
[1756040834214,0.7577,4773.6,4773.5,5.63489892]
[1756040834419,0.7577,4773.6,4773.5,3.54]
[1756040834596,0.01200001,4773.8,4773.7,2.09481115]
[1756040834797,0.01200001,4773.8,4773.7,8.20421115]
[1756040834996,0.01200001,4773.8,4773.7,5.10661115]
[1756040835314,0.32750001,4773.8,4773.7,3.70581115]
[1756040835635,0.32750001,4773.8,4773.7,7.25281115]
[1756040835846,0.01200001,4773.8,4773.7,8.99521158]
[1756040836200,0.01200001,4773.8,4773.7,9.65521158]
[1756040836708,0.01200001,4773.8,4773.7,6.10821158]
[1756040836907,0.01200001,4773.8,4773.7,9.65621158]
[1756040837238,0.01200001,4773.8,4773.7,7.25581115]
[1756040837484,0.32750001,4773.8,4773.7,7.25581115]
[1756040837736,0.76970001,4773.8,4773.7,5.162]
[1756040838307,0.32750001,4773.8,4773.7,7.25681115]
[1756040839534,0.01200001,4773.8,4773.7,7.55321115]
[1756040839702,0.01200001,4773.8,4773.7,8.52850129]
[1756040839907,0.01200001,4773.8,4773.7,8.97290129]
[1756040840519,0.01200001,4773.8,4773.7,8.52850129]
[1756040840723,0.01200001,4773.8,4773.7,8.97290129]
[1756040842853,0.01200001,4773.8,4773.7,8.52850129]
[1756040843053,0.01200001,4773.8,4773.7,7.55321115]
[1756040843456,0.01200001,4773.8,4773.7,7.99631115]
[1756040844848,0.01200001,4773.8,4773.7,8.76111115]
[1756040845514,0.01200001,4773.8,4773.7,8.10111115]
[1756040846515,0.01200001,4773.8,4773.7,7.65801115]
[1756040847055,0.01200001,4773.8,4773.7,8.67761129]
[1756040847249,0.01200001,4773.8,4773.7,5.12661129]
[1756040847551,0.01200001,4773.8,4773.7,8.67661129]
[1756040847758,0.01200001,4773.8,4773.7,5.12661129]
[1756040847920,0.01200001,4773.8,4773.7,8.67661129]
[1756040848118,0.04590001,4773.8,4773.7,8.38021129]
[1756040848323,0.04590001,4773.8,4773.7,7.25581115]
[1756040848632,0.01200001,4773.8,4773.7,7.25581115]
[1756040849254,0.29860001,4773.8,4773.7,3.70581115]
[1756040849441,0.01200001,4773.8,4773.7,7.25581115]
[1756040850153,0.01200001,4773.8,4773.7,7.56211115]
[1756040850654,0.01200001,4773.8,4773.7,7.25581115]
[1756040851024,0.29860001,4773.8,4773.7,7.25581115]
[1756040851650,0.74570001,4773.8,4773.2,1.611]
[1756040851858,2.54191665,4773.7,4773.0,1.611]
[1756040852057,0.94062049,4773.6,4773.1,3.55]
[1756040852262,0.01200001,4773.8,4773.7,2.09481115]
[1756040852474,0.32782737,4773.9,4773.8,5.75476727]
[1756040852637,1e-08,4774.8,4774.7,2.09437242]
[1756040852839,1e-08,4774.8,4774.7,8.53748971]
[1756040853027,0.00200001,4774.8,4774.7,11.98658971]
[1756040853230,0.00200001,4774.8,4774.7,5.71959318]
[1756040853433,0.00200001,4774.8,4774.7,7.57718971]
[1756040853655,0.00200001,4774.8,4774.7,7.88348971]
[1756040853965,0.00200001,4774.8,4774.7,8.32658971]
[1756040854160,0.00200001,4774.8,4774.7,4.75458971]
[1756040854334,0.00200001,4774.8,4774.7,8.98758971]
[1756040854534,0.00200001,4774.8,4774.7,9.95269318]
[1756040854934,0.00200001,4774.8,4774.7,6.16279318]
[1756040855154,0.00200001,4774.8,4774.7,9.73679318]
[1756040855354,0.00200001,4774.8,4774.7,9.29369318]
[1756040855561,0.00200001,4774.8,4774.7,9.29269318]
[1756040855861,0.00200001,4774.8,4774.7,5.71969318]
[1756040856031,0.00200001,4774.8,4774.7,9.29269318]
[1756040856233,0.00200001,4774.8,4774.7,9.73579318]
[1756040856736,0.00200001,4774.8,4774.7,10.39579318]
[1756040857633,0.00200001,4774.8,4774.7,6.37969318]
[1756040857956,0.00200001,4774.8,4774.7,9.95169318]
[1756040858534,0.00200001,4774.8,4774.7,1.91081729]
[1756040858535,0.28860001,4774.8,4774.7,1.91081729]
[1756040858849,0.28860001,4774.8,4774.7,7.47138971]
[1756040859034,0.00200001,4774.8,4774.7,7.47138971]
[1756040859229,0.28860001,4774.8,4774.7,7.47138971]
[1756040859428,0.28860001,4774.8,4774.7,7.47053779]
[1756040860029,0.00200001,4774.8,4774.7,7.77583779]
[1756040860234,0.00200001,4774.8,4774.7,7.77585419]
[1756040860472,0.00200001,4774.8,4774.7,8.76192929]
[1756040860658,0.00200001,4774.8,4774.7,9.30982929]
[1756040862073,0.00200001,4774.8,4774.7,8.86672929]
[1756040862245,0.00200001,4774.8,4774.7,9.30982929]
[1756040862675,0.00200001,4774.8,4774.7,9.96982929]
[1756040863746,0.00200001,4774.8,4774.7,9.96882929]
[1756040864669,0.00200001,4774.8,4774.7,5.29672929]
[1756040864982,0.00200001,4774.8,4774.7,9.96782929]
[1756040866072,0.00200001,4774.8,4774.7,4.99045283]
[1756040866274,0.00200001,4774.8,4774.7,8.55845283]
[1756040866652,0.00200001,4774.8,4774.7,8.86475283]
[1756040867042,0.00200001,4774.8,4774.7,7.77287773]
[1756040867243,0.00200001,4774.8,4774.7,4.31067773]
[1756040867446,0.00200001,4774.8,4774.7,7.57137773]
[1756040867866,0.00200001,4774.8,4774.7,7.87767773]
[1756040868060,0.00200001,4774.8,4774.7,4.00437773]
[1756040868265,0.28860001,4774.8,4774.7,3.89957773]
[1756040868491,0.28860001,4774.8,4774.7,7.46757773]
[1756040868695,0.28860001,4774.8,4774.7,9.50707412]